Cogmind - Beta 14 @@@ ROGUE MODE // 2024.08.13 @ 22:42:57 Player: Jammed Result: Destroyed by 0Y-5M2(R) with Subdweller Beam Cannon Performance ------------- Evolutions (0) 0 Regions Visited (3) 600 Robots Destroyed (31) 155 Value Destroyed (586) 586 Prototype IDs (1) 20 Alien Tech Used (0) 0 Bonus (87) 87 TOTAL SCORE: 1448 Bonus ------- Follower Combat Kills 120 Friendly Fire -33 Cogmind --------- Core Integrity 0/250 Matter 290/300 Energy 85/100 System Corruption 0% Temperature Cool (9) Movement Rolling (130) Ox2 Location -10/Subcaves Parts ------- > --- POWER (1) -------- (None) > --- PROPULSION (2) --- Subdweller Monowheel > --- UTILITY (2) ------ High-capacity Storage Unit > --- WEAPON (2) ------- Improved Medium Laser Subdweller Laser > --- INVENTORY (20) --- Ion Engine Subdweller Power Source Subdweller Power Source Light Treads Light Treads Light Treads Light Treads Light Treads Light Treads Subdweller Monowheel Heat Sink Subdweller Optics Seismic Detector Assault Rifle Subdweller Machine Gun Mini Grenade Launcher Mining Laser Peak State ------------ > --- POWER ------------ Ion Engine > --- PROPULSION ------- Aluminum Leg Aluminum Leg > --- UTILITY ---------- Improved Heat Sink High-capacity Storage Unit > --- WEAPON ----------- Improved Medium Laser Improved Medium Laser > --- INVENTORY -------- Ion Engine Subdweller Power Source Subdweller Power Source Light Treads Light Treads Light Treads Light Treads Light Treads Light Treads Compact Wheel Subdweller Monowheel Heat Sink Subdweller Optics Seismic Detector Improved Medium Laser Improved Medium Laser Assault Rifle Subdweller Machine Gun Mini Grenade Launcher Mining Laser [Rating: 16] Favorites ----------- Power Ion Engine Engine Ion Engine Power Core Light Nuclear Core Propulsion Aluminum Leg Leg Aluminum Leg Wheel Subdweller Monowheel Utility High-capacity Storage Unit Device Improved Heat Sink Storage High-capacity Storage Unit Weapon Improved Medium Laser Energy Gun Improved Medium Laser Ballistic Gun Assault Rifle Special Weapon Mining Laser Build | -11 -10 -10 -10 ------- Run | Yrd Mat Min Sub Slots Evolved . | . . . . Power . | . . . . Propulsion . | . . . . Utility . | . . . . Weapon . | . . . . Parts Attached 24 | 3 15 3 3 Power 2 | . 2 . . Engine 1 | . 1 . . Core 1 | . 1 . . Reactor . | . . . . Propulsion 4 | . 3 . 1 Treads . | . . . . Leg 3 | . 3 . . Wheel 1 | . . . 1 Hover . | . . . . Flight . | . . . . Utility 7 | 1 3 3 . Device 6 | 1 2 3 . Storage 1 | . 1 . . Processor . | . . . . Hackware . | . . . . Protection . | . . . . Artifact . | . . . . Weapon 11 | 2 7 . 2 Energy Gun 9 | 1 6 . 2 Energy Cannon . | . . . . Ballistic Gun . | . . . . Ballistic Cannon . | . . . . Launcher . | . . . . Special Weapon 2 | 1 1 . . Impact Weapon . | . . . . Slashing Weapon . | . . . . Piercing Weapon . | . . . . Special Melee Weapon . | . . . . Unidentified Prototypes 1 | . 1 . . Parts Lost 8 | . 1 1 6 Power 1 | . . . 1 Propulsion 2 | . . . 2 Utility 3 | . 1 1 1 Weapon 2 | . . . 2 Highest Loss Streak 5 | . 1 1 5 To Critical Strikes . | . . . . Average Slot Usage (%) 97 | . 93 100 99 Engine 12 | . 10 14 14 Core 1 | . 3 . . Leg 27 | . 28 28 27 Device 11 | . 8 14 13 Storage 14 | . 14 14 14 Energy Gun 26 | . 25 28 28 Peak Build Rating 16 | 7 14 15 16 Average Rating 12 | 6 10 14 15 On Entrance 10 | 6 7 12 15 Naked Turns . | . . . . Heaviest Build 52 | 15 52 52 52 Greatest Support 20 | 20 20 20 20 Greatest Overweight (x) 2 | . 2 2 2 Average Overweight (x) 1 | . 1 2 2 Largest Inventory Capacity 20 | 8 20 20 20 Average Capacity 18 | 8 16 20 20 Most Carried 20 | 7 14 16 20 Average Carried 13 | 6 9 15 19 Final Capacity 20 | 8 20 20 20 Final Carried 17 | 6 13 16 17 Class Distribution -------------------- 100% | Mutant Dominant Class ---------------- Mutant | -10/Materials Mutant | -10/Mines Mutant | -10/Subcaves Resources | -11 -10 -10 -10 ----------- Run | Yrd Mat Min Sub Matter Collected 484 | 228 196 40 20 Remotely . | . . . . Salvage Created 836 | 96 569 77 94 Parts 57 | 6 45 4 2 Haulers Intercepted 1 | . 1 . . Recyclers Shooed 1 | . 1 . . Parts Field Recycled . | . . . . Retrieved Matter . | . . . . Parts Self-Destructed 6 | . . . 6 Prevented . | . . . . Kills | -11 -10 -10 -10 ------- Run | Yrd Mat Min Sub Combat Hostiles Destroyed 21 | . 15 3 3 Guns 21 | . 15 3 3 Classes Destroyed 9 | 2 6 . 1 Tunneler 3 | 1 1 1 . Hauler 1 | . 1 . . Recycler 1 | 1 . . . Mechanic 1 | . 1 . . Operator 1 | . 1 . . Watcher 3 | . 3 . . Swarmer 12 | . 9 3 . Grunt 6 | . 6 . . Subdweller 3 | . . . 3 Best Kill Streak 4 | 2 4 3 1 Combat Bots Only 3 | . 3 3 1 Max Kills in Single Turn 1 | 1 1 1 1 Gunslinging . | . . . . Exploded . | . . . . Melee . | . . . . Uniques/NPCs Destroyed . | . . . . Combat | -11 -10 -10 -10 -------- Run | Yrd Mat Min Sub Hostile Shots Fired 108 | . 55 30 23 Missed 20 | . 8 4 8 Damage Taken 1203 | . 529 200 474 Core 257 | . 89 21 147 Absorbed by Shields . | . . . . Core Remaining (%) 100 | 100 . . . Volleys Fired 96 | 6 61 9 20 Largest 2 | 2 2 2 2 Hottest 115 | 60 115 112 112 Shots Fired 186 | 12 117 18 39 Gun 182 | 12 113 18 39 Cannon . | . . . . Launcher . | . . . . Special 4 | . 4 . . Kinetic 23 | 6 17 . . Thermal 163 | 6 100 18 39 Explosive . | . . . . Electromagnetic . | . . . . Robot Hit Streak 22 | 2 10 4 22 Robot Miss Streak 4 | 4 3 2 1 Penetration Max . | . . . . Secondary Targets 2 | . . 2 . Max Gunslinging Chain 1 | . . 1 . Shots Hit Robots 114 | 4 75 9 26 Core Hits 45 | 3 32 4 6 Critical Kills . | . . . . Critical Parts Destroyed . | . . . . Critical Strikes 9 | . 5 1 3 Burn 9 | . 5 1 3 Melee Attacks . | . . . . Impact . | . . . . Slashing . | . . . . Piercing . | . . . . Sneak Attacks . | . . . . Combat Hostiles . | . . . . Follow-up Attacks . | . . . . Damage Inflicted 1828 | 74 1078 198 478 Guns 1828 | 74 1078 198 478 Cannons . | . . . . Explosions . | . . . . Melee . | . . . . Ramming . | . . . . Kinetic 202 | 27 175 . . Thermal 1626 | 47 903 198 478 Explosive . | . . . . Electromagnetic . | . . . . Impact . | . . . . Slashing . | . . . . Piercing . | . . . . Highest Corruption . | . . . . Average Corruption . | . . . . Corruption Purged . | . . . . Corruption Blocked . | . . . . Overload Shots . | . . . . Overflow Damage . | . . . . Projectiles . | . . . . Explosions . | . . . . Melee . | . . . . Knockbacks . | . . . . Impact . | . . . . Kinetic . | . . . . Secondary . | . . . . Self-Inflicted Damage . | . . . . Shots . | . . . . Rammed . | . . . . Targets Rammed . | . . . . Kicked . | . . . . Crushed . | . . . . Highest Temperature 267 | . 225 267 6 Average Temperature 73 | . 61 140 6 Received Heat Transfer 306 | . 219 . 87 Siege Activations . | . . . . Robots Corrupted . | . . . . Combat Hostiles . | . . . . Parts Fried . | . . . . Impact Corruptions . | . . . . Robots Melted . | . . . . Combat Hostiles . | . . . . Parts Melted 7 | . 5 1 1 Heat Transferred 4577 | 100 2738 481 1258 Parts Sabotaged . | . . . . Parts Stolen . | . . . . Parts Stripped . | . . . . Power Chain Reactions . | . . . . Alert | -11 -10 -10 -10 ------- Run | Yrd Mat Min Sub Peak Influence 226 | 10 226 136 . Initial 35 | . 6 35 . Average 52 | 6 71 22 . Maximum Alert Level 1 | . 1 . . Low Security (%) 97 | 100 95 100 . Level 1 2 | . 4 . . Level 2 . | . . . . Level 3 . | . . . . Level 4 . | . . . . Level 5 . | . . . . High Security . | . . . . Max Security . | . . . . Squads Dispatched 4 | . 4 . . Investigation 3 | . 3 . . Extermination . | . . . . Reinforcement 1 | . 1 . . Assault . | . . . . Garrison . | . . . . Intercept . | . . . . Searches Triggered . | . . . . Construction Impeded . | . . . . Haulers Reinforced . | . . . . Active Scanning Responses . | . . . . Cargo Convoy Interrupts . | . . . . Stealth | -11 -10 -10 -10 --------- Run | Yrd Mat Min Sub Distress Signals 1 | . 1 . . Communications Jammed . | . . . . Distress Signals . | . . . . Times Spotted 37 | . 25 4 8 Peak Tracking Total 4 | . 4 3 4 Tactical Retreats 1 | . 1 . . Traps | -11 -10 -10 -10 ------- Run | Yrd Mat Min Sub Traps Triggered 3 | . 3 . . Indirectly . | . . . . Trap Hack Attempts . | . . . . Triggered . | . . . . Disarmed . | . . . . Reprogrammed . | . . . . Reused . | . . . . Traps Extracted . | . . . . Installed . | . . . . Triggered . | . . . . Machines | -11 -10 -10 -10 ---------- Run | Yrd Mat Min Sub Machines Disabled 2 | . 2 . . Max in Single Turn 1 | . 1 . . Machines Repaired . | . . . . Machines Dismantled . | . . . . Machines Sabotaged . | . . . . Overloaded Fab Kills . | . . . . Hacking | -11 -10 -10 -10 --------- Run | Yrd Mat Min Sub Machines Accessed 7 | . 6 . 1 Terminals 4 | . 4 . . Fabricators . | . . . . Repair Stations . | . . . . Recycling Units 2 | . 2 . . Scanalyzers . | . . . . Garrison Access . | . . . . Total Hacks 19 | . 16 . 3 Successful 15 | . 12 . 3 Failed 3 | . 3 . . Catastrophic . | . . . . Database Lockouts 1 | . 1 . . Manual 14 | . 14 . . Terminals 12 | . 12 . . Fabricators . | . . . . Repair Stations . | . . . . Recycling Units 4 | . 4 . . Scanalyzers . | . . . . Garrison Access . | . . . . Terminal Hacks 8 | . 5 . 3 Record 3 | . . . 3 Part Schematic 1 | . 1 . . Robot Analysis 3 | . 3 . . Alert Level 1 | . 1 . . Fabricator Hacks . | . . . . Repair Station Hacks . | . . . . Recycling Unit Hacks 2 | . 2 . . Report Inventory 2 | . 2 . . Scanalyzer . | . . . . Garrison Access Hacks . | . . . . Unauthorized Hacks 4 | . 4 . . Terminals 2 | . 2 . . Botnet 2 | . 2 . . Fabricators . | . . . . Repair Stations . | . . . . Recycling Units 2 | . 2 . . Tunnel 2 | . 2 . . Scanalyzers . | . . . . Garrison Access . | . . . . Data Cores Recovered 1 | . 1 . . Used . | . . . . Hacking Detections 5 | . 5 . . Full Trace Events . | . . . . Feedback Events . | . . . . Feedback Blocked . | . . . . Robot Schematics Acquired . | . . . . Robots Built . | . . . . Authchips . | . . . . Time . | . . . . Total Robot Build Rating . | . . . . Part Schematics Acquired 1 | . 1 . . Parts Built . | . . . . Authchips . | . . . . Time . | . . . . Total Part Build Rating . | . . . . Parts Repaired . | . . . . Time . | . . . . Parts Recycled . | . . . . Recycled Matter . | . . . . Retrieved Matter . | . . . . Retrieved Components . | . . . . Parts Scanalyzed . | . . . . Part Schematics Acquired . | . . . . Parts Damaged . | . . . . Bothacking | -11 -10 -10 -10 ------------ Run | Yrd Mat Min Sub Used RIF Installer . | . . . . Robots Hacked . | . . . . Non-combat . | . . . . Combat . | . . . . Robot Hacks Applied . | . . . . Relay Couplers Released . | . . . . Fabnet Peak Effective % . | . . . . Robots Rewired . | . . . . Allies Hacked . | . . . . Hacks Repelled . | . . . . Allies | -11 -10 -10 -10 -------- Run | Yrd Mat Min Sub Total Allies 3 | . . 3 . Largest Group 3 | . . 3 2 Highest-Rated Group 40 | . . 40 32 Highest-Rated Ally 16 | . . 16 16 Total Orders . | . . . . Ally Attacks 26 | . . 11 15 Total Damage 279 | . . 101 178 Kills 4 | . . 2 2 Allies Corrupted . | . . . . Allies Melted . | . . . . Intel | -11 -10 -10 -10 ------- Run | Yrd Mat Min Sub Robot Analysis Total 3 | . 3 . . Derelict Logs Recovered 3 | . . 2 1 Drone Launches . | . . . . Drone Recoveries . | . . . . Exploration | -11 -10 -10 -10 ------------- Run | Yrd Mat Min Sub Turns Passed 4964 | 63 2285 1350 1266 Spaces Moved 1920 | 32 945 481 462 Core . | . . . . Treads . | . . . . Legs 1901 | 32 945 481 443 Wheels 19 | . . . 19 Hover . | . . . . Flight . | . . . . Fastest Speed 120 | 120 120 260 130 Average Speed 229 | 120 206 260 254 Slowest Speed 260 | 120 260 260 260 Overloaded Moves . | . . . . Propulsion Burnouts . | . . . . Robots Hopped . | . . . . Cave-ins Triggered . | . . . . Exploration Rate (%) 57 | 3 99 98 30 Regions Visited 3 Branch Regions 2 Pre-discovered Areas 2 | . 2 . . Known Exits Taken . | . . . . Unknown Exits Taken 3 | 1 1 1 . Scrap Searched 2 | . . 1 1 Spaces Dug 3 | . 3 . . Terrain Destroyed 3 | . 3 . . Melee . | . . . . Projectile 3 | . 3 . . AOE . | . . . . Terrain Rammed . | . . . . Walls Destroyed . | . . . . Machines Disabled . | . . . . Actions | -11 -10 -10 -10 --------- Run | Yrd Mat Min Sub Total 2280 | 45 1158 563 514 Wait 206 | 2 119 68 17 Move 1917 | 31 944 480 462 Hop . | . . . . Pick Up 19 | 1 8 2 8 Fast Attach 10 | 1 8 1 . Attach 7 | 2 1 1 3 Detach 4 | 1 2 1 . Swap 7 | . 6 1 . Drop 14 | 1 9 . 4 Fire 96 | 6 61 9 20 Melee . | . . . . Ram . | . . . . Kick . | . . . . Crush . | . . . . Escape Stasis . | . . . . Rewire . | . . . . Trap . | . . . . Miscellaneous . | . . . . Route ------- -11/Scrapyard -10/Materials (discovered 5 exits: [*Mat x3] / [*Min x2]) -10/Mines (discovered 4 exits: [*Mat x2] / [*Exi] / *Sub) -10/Subcaves History --------- Turn | Location | Event 16 | -11/Scrapyard | Discovered new exit (range 3) 64 | -11/Scrapyard | Entered Materials 315 | -10/Materials | Build established: Mutant 371 | -10/Materials | Discovered new exit (range 10) 493 | -10/Materials | Discovered new exit (range 7) 639 | -10/Materials | Discovered new exit (range 14) 878 | -10/Materials | Discovered new exit (range 4) 1300 | -10/Materials | Discovered new exit (range 16) 1574 | -10/Materials | Central database locked down 2349 | -10/Materials | Entered Mines 2624 | -10/Mines | Learned Materials terminal intel 2665 | -10/Mines | Assisted by bots powering up and referring to "LRC-V3" 2718 | -10/Mines | Discovered new exit (range 4) 2953 | -10/Mines | Discovered new exit (range 12) 3056 | -10/Mines | A weapon hastily lodged in a ceiling crevice suddenly fell to the ground 3209 | -10/Mines | Learned Materials security intel 3238 | -10/Mines | Deemed a non-threat by the Exiles lab entrance 3238 | -10/Mines | Discovered new exit (range 5) 3347 | -10/Mines | Discovered new exit (range 5) 3463 | -10/Mines | Found a hidden stash of uninstalled traps 3699 | -10/Mines | Entered Subcaves 3699 | -10/Subcaves | Accompanied by 2 allies 3897 | -10/Subcaves | Learned 8 Materials zone layouts 4197 | -10/Subcaves | Core integrity fell below 50% 4274 | -10/Subcaves | Visited Clippyterm 4282 | -10/Subcaves | Learned Factory emergency access door positions 4329 | -10/Subcaves | Shifting Twisted Machinery released Sub. Laser 4338 | -10/Subcaves | Shifting Twisted Machinery released Riot Gun 4867 | -10/Subcaves | Shifting Twisted Machinery released Mak. Shrapnel Gun 4957 | -10/Subcaves | Ambushed by Subdweller buried in earth 4959 | -10/Subcaves | Ambushed by Subdweller buried in earth 4959 | -10/Subcaves | Ambushed by Subdweller buried in earth 4962 | -10/Subcaves | Core integrity fell below 20% 4965 | -10/Subcaves | Destroyed by 0Y-5M2(R) with Subdweller Beam Cannon Last Messages --------------- 04699_ 66-VL7(u) deconstructs Twisted Machinery. 04718_ 66-VL7(u) tweaks Twisted Machinery. 04731_ 66-VL7(u) builds Twisted Machinery. Mak. Shrapnel Gun falls loose from the Twisted Machinery. 04898_ SB-8DU(R) suffers critical hit (Burn). 04915_ Aluminum Leg destroyed. 04916_ Destroyed Scrap Shield. 04919_ Sub. Laser melted. 04919_ SB-8DU(R) destroyed. 04925_ Acquired 10 matter. 04955_ ON-SWV(R) suffers critical hit (Burn). 04955_ Aluminum Leg destroyed. 04957_ Imp. Medium Laser destroyed. 04957_ Imp. Heat Sink destroyed. 04958_ 0Y-5M2(R): "ARGHSUB!" 04960_ 5I-EZU(R): "ARGHSUB!" 04960_ AY-7TT(R): "ARGHSUB!" 04961_ Imp. Medium Laser destroyed. 04962_ Ion Engine destroyed. 04962_ ON-SWV(R) destroyed. Map ----- +----------------------------------------------------+ | ?????????????????????????????????????????????????? | | ?????????????????????????????????????????????????? | | ?????????????????????????????????????????????????? | | ?????????????????????????????????????????????????? | | ?????????????????????????????????????????????????? | | ?????????????????????????????????????????????????? | | ?????????????????????????????????????????????????? | | ?????????????????????????????????????????????????? | | ?????????????????????????????????????????????????? | | ?????????????????????????????????????????????????? | | ?????????????????????????????????????????????????? | | ?????????????????????????????????????????????????? | | ?????????????????????????????????????????????????? | | ?????????????????????????????????????????????????? | | ?????????????? ?????????????##???????????????????? | | ?????????????? ???????????# ???????????????????? | | ????????????? #????????? #???????????????????? | | ????????????? ^ ##??????? #???????????????????? | | ????????????? #?????? #???????????????????? | | ??????????????# ###### #???????????????????? | | ???????????????? ;; ;; ##??????????????????? | | ?????????????????? #??????????????????? | | ???????????????????# #??????????????????? | | ???????????????????#;; & ;#??????????????????? | | ???????????????????# ######?????????????? | | ???????????????????# R@ #" # ##????????????? | | ???????????????????# R ; " ##???????????? | | ???????????????????## R # " #???????????? | | ????????????????????## # #???????????? | | ?????????????????????## #????????????? | | ??????????????????????#""""" # ##???????????? | | ??????????????????????#" " ## %#???????????? | | ??????????????????????#### " #### #???????????? | | ?????????????????????????##" #?# #???????????? | | ??????????????????????????### ##?## #???????????? | | ????????????????????????????###??# ##???????????? | | ?????????????????????????????????## #????????????? | | ?????????????????????????????????# "##???????????? | | ?????????????????????????????????##["#???????????? | | ??????????????????????????????????# ##???????????? | | ??????????????????????????????????# "#???????????? | | ?????????????????????????????????## ##???????????? | | ?????????????????????????????????# #????????????? | | ?????????????????????????????????# ##???????????? | | ????????????????????????????????## ##??????????? | | ????????????????????????????????# #??????????? | | ????????????????????????????????# #??????????? | | ????????????????????????????????# #??????????? | | ????????????????????????????????# ###??????????? | | ##??????????????????#######?????# #????????????? | +----------------------------------------------------+ Best States ------------- Heat Dissipation 39 Energy Generation 14 Energy Capacity 250 Matter Stores 300 Matter Capacity 300 Sight Range 16 Terrain Scan Density 10 Evasion (%) 55 Item Schematics ----------------- Hcp. Storage Unit | -10/Materials | Hacked Robot Schematics ------------------ None Fabricated ------------ Nothing Alien Tech Used ----------------- None Achievements -------------- None Challenges ------------ None Game ------ Seed NeutronBackupFacilitator Manual? 0 Play Time 00:18:46 Cumulative 193.7 hours Start 2024.08.13 @ 00:01:41 End 2024.08.13 @ 22:42:57 Sessions 3 Manual Loads 0 Difficulty Rogue Special Mode None Game No. 128 Rogue 128 Adventurer 0 Explorer 0 Win Type - Total 2 Types 1/0/0/1/0/0/0/0/0 Lore% 63 Gallery% 59 Achievement% 58 Wizard Run 0 Options --------- Layout 0 ASCII 0 Keyboard 0 Movement Mouse Keybinds 0 Fullscreen 1 Font 18/SmallcapsGlow Map View 76x50 Zoom Use 0% Tactical HUD 1 Map Filters NONE Filters NONE Steam 1 RUN: d04a4e6a-96db-40c7-b471-8946db1b5a25